fUSD/lending_fUSD_20251002
["ID","MTS","AMOUNT","RATE_DAILY","PERIOD"]
[388809435,1759379443469,-150.0,0.00017274,2]
[388809436,1759379443480,-500.0,0.00017274,2]
[388809437,1759379443492,-293.91,0.00017274,2]
[388809438,1759379443504,-1665.71,0.00017274,2]
[388809439,1759379443517,-170.05,0.00017337,2]
[388809440,1759379443528,-200.0,0.00017341,2]
[388809441,1759379443540,-325.0,0.00017349,2]
[388809442,1759379443551,-325.0,0.00017411,2]
[388809443,1759379443563,-180.0,0.00017493,2]
[388809444,1759379443575,-13973.43435612,0.000175,2]
[388809445,1759379443586,-200.0,0.00017514,2]
[388809447,1759379443596,-306.63195673,0.00017521,2]
[388809449,1759379443608,-502.06234326,0.00017521,2]
[388809450,1759379443620,-505.56200046,0.00017521,2]
[388809451,1759379443631,-506.22946674,0.00017521,2]
[388809452,1759379443643,-325.0,0.00017527,2]
[388809454,1759379443657,-430.96772277,0.00017547,2]
[388809455,1759379443670,-150.0,0.00017547,2]
[388809456,1759379443682,-944.0,0.00017547,2]
[388809458,1759379443695,-500.0,0.00017547,2]
[388809459,1759379443707,-1125.0,0.00017547,2]
[388809460,1759379443720,-234.18072114,0.00017547,2]
[388809461,1759379443734,-233.52,0.00017548,2]
[388809462,1759379443745,-220.83886819,0.00017548,2]
[388809463,1759379443756,-150.0,0.00017548,2]
[388809464,1759379443767,-500.0,0.00017548,2]
[388809465,1759379443778,-500.0,0.00017548,2]
[388809466,1759379443789,-592.88107619,0.00017548,2]
[388809467,1759379443801,-151.11333948,0.00017548,2]
[388809468,1759379443813,-150.0,0.00017548,2]
[388809469,1759379443824,-150.0,0.00017548,2]
[388809470,1759379443835,-150.0,0.00017548,2]
[388809471,1759379443846,-153.42782319,0.00017548,2]
[388809472,1759379443857,-309.83417671,0.00017548,2]
[388809473,1759379443868,-293.9261717,0.00017548,2]
[388809474,1759379443879,-1665.71,0.00017548,2]
[388809475,1759379443891,-454.0,0.00017572,2]
[388809476,1759379443902,-298.84,0.00017579,2]
[388809478,1759379443913,-325.0,0.0001758,2]
[388809480,1759379443924,-325.0,0.00017584,2]
[388809482,1759379443935,-3075.0,0.00017602,2]
[388809484,1759379443947,-325.0,0.00017628,2]
[388809485,1759379443958,-325.0,0.00017642,2]
[388809486,1759379443970,-325.0,0.00017647,2]
[388809487,1759379443982,-325.0,0.00017687,2]
[388809488,1759379443995,-200.0,0.00017689,2]
[388809489,1759379444006,-325.0,0.00017697,2]
[388809490,1759379444016,-168.0,0.00017701,2]
[388809491,1759379444031,-454.0,0.00017759,2]
[388809492,1759379444044,-454.0,0.00017786,2]
[388809493,1759379444057,-325.0,0.00017806,2]
[388809494,1759379444068,-168.0,0.00017807,2]
[388809495,1759379444079,-152.99202364,0.00017811,2]
[388809496,1759379444091,-150.0,0.00017821,2]
[388809497,1759379444103,-944.0,0.00017821,2]
[388809498,1759379444115,-500.0,0.00017821,2]
[388809499,1759379444127,-1125.0,0.00017821,2]
[388809500,1759379444138,-151.90602146,0.00017822,2]
[388809501,1759379444149,-500.0,0.00017822,2]
[388809502,1759379444160,-201.3508822,0.00017822,2]
[388809503,1759379444170,-150.0,0.00017822,2]
[388809504,1759379444182,-150.0,0.00017822,2]
[388809505,1759379444195,-200.0,0.00017822,2]
[388809506,1759379444206,-1665.71,0.00017822,2]
[388809507,1759379444217,-237.75404,0.0001783,2]
[388809508,1759379444229,-325.0,0.00017877,2]
[388809509,1759379444242,-325.0,0.00017877,2]
[388809510,1759379444254,-325.0,0.00017912,2]
[388809511,1759379444270,-325.0,0.00017976,2]
[388809512,1759379444281,-325.0,0.0001801,2]
[388809513,1759379444292,-5702.95181191,0.00018032,2]
[388809514,1759379444309,-370.35923647,0.00018082,7]
[388809515,1759379444325,-152.25841453,0.00018095,2]
[388809516,1759379444337,-944.0,0.00018095,2]
[388809517,1759379444349,-500.0,0.00018095,2]
[388809518,1759379444361,-1125.0,0.00018095,2]
[388809519,1759379444372,-500.0,0.00018096,2]
[388809520,1759379444383,-150.0,0.00018096,2]
[388809521,1759379444396,-153.90605199,0.00018096,2]
[388809522,1759379444408,-1665.71,0.00018096,2]
[388809523,1759379444422,-1602.56,0.00018116,2]
[388809524,1759379444433,-574.013,0.00018116,2]
[388809525,1759379444445,-1320.794,0.00018116,2]
[388809526,1759379444456,-610.212,0.00018116,2]
[388809527,1759379444466,-823.0,0.00018116,2]
[388809528,1759379444477,-4236.0,0.00018116,2]
[388809529,1759379444488,-920.201,0.00018116,2]
[388809530,1759379444498,-6260.754,0.00018116,2]
[388809531,1759379444509,-1270.436,0.00018116,2]
[388809532,1759379444521,-3399.0,0.00018116,2]
[388809533,1759379444532,-788.0,0.00018116,2]
[388809534,1759379444543,-420.0,0.00018201,2]
[388809535,1759379444554,-151.0,0.00018247,2]
[388809536,1759379444565,-151.0,0.00018247,2]
[388809537,1759379444576,-151.0,0.00018247,2]
[388809538,1759379444586,-151.0,0.00018247,2]
[388809539,1759379444597,-151.0,0.00018247,2]
[388809540,1759379444608,-151.0,0.00018247,2]
[388809541,1759379444619,-200.999753,0.00018247,2]
[388809542,1759379444630,-300.0,0.00018315,2]
[388809543,1759379444641,-2500.0,0.00018315,2]
[388809544,1759379444655,-300.0,0.00018315,2]
[388809545,1759379444667,-250.0,0.00018315,2]
[388809546,1759379444678,-300.0,0.00018325,2]
[388809547,1759379444688,-250.0,0.00018325,2]
[388809548,1759379444701,-2000.0,0.00018325,2]
[388809549,1759379444713,-233.52,0.00018345,2]
[388809550,1759379444724,-4173.64,0.00018356,2]
[388809551,1759379444734,-1098.82,0.00018356,2]
[388809552,1759379444745,-944.0,0.00018369,2]
[388809553,1759379444756,-203.79887847,0.00018369,2]
[388809554,1759379444767,-1125.0,0.00018369,2]
[388809555,1759379444777,-500.0,0.0001837,2]
[388809556,1759379444789,-207.62617344,0.0001837,2]
[388809557,1759379444800,-150.0,0.0001837,2]
[388809558,1759379444810,-1665.71,0.0001837,2]
[388809559,1759379444821,-5702.95181166,0.00018375,2]
[388809560,1759379444832,-150.141,0.00018416,2]
[388809561,1759379444842,-249.377,0.00018416,2]
[388809562,1759379444854,-150.125,0.00018416,2]
[388809563,1759379444865,-150.0,0.00018416,2]
[388809564,1759379444875,-200725.53925842,0.000185,2]
[388809565,1759379444887,-153.198512,0.000185,2]
[388809566,1759379444897,-152.358363,0.000185,2]
[388809567,1759379444908,-151.0,0.000185,2]
[388809568,1759379444919,-151.82816,0.000185,2]
[388809569,1759379444930,-151.0,0.000185,2]
[388809570,1759379444941,-151.0,0.000185,2]
[388809571,1759379444954,-197.969586,0.000185,2]
[388809572,1759379444965,-151.0,0.000185,2]
[388809573,1759379444976,-153.007888,0.000185,2]
[388809574,1759379444986,-151.951599,0.000185,2]
[388809575,1759379444997,-153.481275,0.000185,2]
[388809576,1759379445007,-151.0,0.000185,2]
[388809577,1759379445018,-151.0,0.000185,2]
[388809578,1759379445028,-265.675597,0.000185,2]
[388809579,1759379445038,-151.0,0.000185,2]
[388809580,1759379445049,-151.0,0.000185,2]
[388809581,1759379445060,-151.0,0.000185,2]
[388809582,1759379445071,-151.0,0.000185,2]
[388809583,1759379445081,-151.0,0.000185,2]
[388809584,1759379445091,-270.479526,0.00018589,2]
[388809585,1759379445102,-153.252042,0.00018589,2]
[388809586,1759379445113,-151.0,0.00018589,2]
[388809587,1759379445124,-151.540069,0.00018589,2]
[388809588,1759379445135,-151.0,0.00018589,2]
[388809589,1759379445146,-151.537588,0.00018589,2]
[388809590,1759379445157,-151.0,0.00018589,2]
[388809591,1759379445167,-151.0,0.00018589,2]
[388809592,1759379445177,-151.0,0.00018589,2]
[388809593,1759379445188,-151.0,0.00018589,2]
[388809594,1759379445199,-152.695472,0.00018589,2]
[388809595,1759379445211,-151.0,0.00018589,2]
[388809596,1759379445224,-151.0,0.00018589,2]
[388809597,1759379445236,-157.310451,0.00018589,2]
[388809598,1759379445247,-151.0,0.00018589,2]
[388809599,1759379445258,-370.35923647,0.00018614,2]
[388809600,1759379445269,-151.0,0.0001863,2]
[388809601,1759379445280,-152.347931,0.0001863,2]
[388809602,1759379445294,-151.0,0.0001863,2]
[388809603,1759379445307,-151.0,0.0001863,2]
[388809604,1759379445319,-151.0,0.0001863,2]
[388809605,1759379445330,-151.0,0.0001863,2]
[388809606,1759379445341,-151.0,0.0001863,2]
[388809607,1759379445353,-151.0,0.0001863,2]
[388809608,1759379445364,-151.0,0.0001863,2]
[388809609,1759379445375,-151.0,0.0001863,2]
[388809610,1759379445386,-273.434949,0.0001863,2]
[388809611,1759379445396,-151.0,0.0001863,2]
[388809612,1759379445407,-151.957066,0.0001863,2]
[388809613,1759379445418,-151.0,0.0001863,2]
[388809614,1759379445429,-151.0,0.0001863,2]
[388809615,1759379445440,-151.0,0.0001863,2]
[388809616,1759379445450,-151.0,0.0001863,2]
[388809617,1759379445462,-151.0,0.0001863,2]
[388809618,1759379445472,-156.783542,0.0001863,2]
[388809619,1759379445483,-151.0,0.0001863,2]
[388809620,1759379445494,-151.0,0.0001863,2]
[388809621,1759379445505,-151.950874,0.0001863,2]
[388809622,1759379445517,-151.0,0.0001863,2]
[388809623,1759379445528,-153.077218,0.0001863,2]
[388809624,1759379445541,-151.0,0.0001863,2]
[388809625,1759379445551,-151.0,0.0001863,2]
[388809626,1759379445563,-151.0,0.0001863,2]
[388809627,1759379445573,-151.0,0.0001863,2]
[388809628,1759379445584,-154.988564,0.0001863,2]
[388809629,1759379445595,-151.0,0.0001863,2]
[388809630,1759379445606,-151.0,0.0001863,2]
[388809631,1759379445617,-174.400351,0.0001863,2]
[388809632,1759379445628,-151.0,0.0001863,2]
[388809633,1759379445639,-151.0,0.0001863,2]
[388809634,1759379445652,-151.0,0.0001863,2]
[388809635,1759379445664,-151.0,0.0001863,2]
[388809636,1759379445675,-151.0,0.0001863,2]
[388809637,1759379445686,-151.0,0.0001863,2]
[388809638,1759379445698,-151.0,0.0001863,2]
[388809639,1759379445709,-151.0,0.0001863,2]
[388809640,1759379445720,-151.552322,0.0001863,2]
[388809641,1759379445732,-151.0,0.0001863,2]
[388809642,1759379445743,-151.0,0.0001863,2]
[388809643,1759379445753,-151.0,0.0001863,2]
[388809644,1759379445763,-151.0,0.0001863,2]
[388809645,1759379445774,-151.0,0.0001863,2]
[388809646,1759379445786,-151.0,0.0001863,2]
[388809647,1759379445796,-151.0,0.0001863,2]
[388809648,1759379445807,-151.0,0.0001863,2]
[388809649,1759379445817,-151.0,0.0001863,2]
[388809650,1759379445828,-164.401767,0.0001863,2]
[388809651,1759379445839,-164.401767,0.0001863,2]
[388809653,1759379445850,-164.401767,0.0001863,2]
[388809654,1759379445860,-160.0,0.0001863,2]
[388809655,1759379445871,-160.0,0.0001863,2]
[388809656,1759379445882,-160.0,0.0001863,2]
[388809657,1759379445893,-160.0,0.0001863,2]
[388809658,1759379445903,-160.0,0.0001863,2]
[388809659,1759379445913,-160.0,0.0001863,2]
[388809660,1759379445925,-160.0,0.0001863,2]
[388809661,1759379445937,-160.0,0.0001863,2]
[388809662,1759379445948,-160.0,0.0001863,2]
[388809664,1759379445959,-160.0,0.0001863,2]
[388809666,1759379445970,-160.0,0.0001863,2]
[388809668,1759379445980,-160.0,0.0001863,2]
[388809670,1759379445991,-160.0,0.0001863,2]
[388809671,1759379446001,-160.0,0.0001863,2]
[388809672,1759379446012,-160.0,0.0001863,2]
[388809673,1759379446024,-160.0,0.0001863,2]
[388809674,1759379446034,-160.0,0.0001863,2]
[388809677,1759379446837,-160.0,0.0001863,2]
[388809678,1759379446888,-160.0,0.0001863,2]
[388809679,1759379446917,-160.0,0.0001863,2]
[388809680,1759379446937,-160.0,0.0001863,2]
[388809681,1759379446947,-160.0,0.0001863,2]
[388809682,1759379446957,-160.0,0.0001863,2]
[388809683,1759379446967,-160.0,0.0001863,2]
[388809684,1759379446978,-160.0,0.0001863,2]
[388809685,1759379446990,-160.0,0.0001863,2]
[388809686,1759379446999,-160.0,0.0001863,2]
[388809687,1759379447009,-160.0,0.0001863,2]
[388809688,1759379447018,-160.0,0.0001863,2]
[388809689,1759379447029,-160.0,0.0001863,2]
[388809690,1759379447039,-160.0,0.0001863,2]
[388809691,1759379447048,-160.0,0.0001863,2]
[388809692,1759379447058,-160.0,0.0001863,2]
[388809693,1759379447068,-160.0,0.0001863,2]
[388809694,1759379447077,-160.0,0.0001863,2]
[388809695,1759379447086,-160.0,0.0001863,2]
[388809696,1759379447094,-160.0,0.0001863,2]
[388809697,1759379447104,-160.0,0.0001863,2]
[388809698,1759379447114,-160.0,0.0001863,2]
[388809699,1759379447123,-160.0,0.0001863,2]
[388809700,1759379447132,-160.0,0.0001863,2]
[388809701,1759379447141,-160.0,0.0001863,2]
[388809702,1759379447151,-160.0,0.0001863,2]
[388809703,1759379447160,-160.0,0.0001863,2]
[388809704,1759379447170,-160.0,0.0001863,2]
[388809705,1759379447179,-160.0,0.0001863,2]
[388809706,1759379447188,-160.0,0.0001863,2]
[388809707,1759379447198,-160.0,0.0001863,2]
[388809708,1759379447208,-160.0,0.0001863,2]
[388809709,1759379447216,-160.0,0.0001863,2]
[388809710,1759379447226,-160.0,0.0001863,2]
[388809711,1759379447235,-160.0,0.0001863,2]
[388809712,1759379447245,-160.0,0.0001863,2]
[388809713,1759379447254,-172.310748,0.0001863,2]
[388809714,1759379447264,-944.0,0.00018643,2]
[388809715,1759379447274,-1125.0,0.00018643,2]
[388809716,1759379447284,-500.0,0.00018644,2]
[388809717,1759379447293,-1665.71,0.00018644,2]
[388809718,1759379447303,-239.55585,0.00018644,2]
[388809719,1759379447312,-152.99202364,0.00018722,2]
[388809720,1759379447322,-151.0,0.00018819,2]
[388809721,1759379447331,-151.0,0.00018819,2]
[388809722,1759379447341,-151.0,0.00018819,2]
[388809723,1759379447350,-151.0,0.00018819,2]
[388809724,1759379447359,-151.0,0.00018819,2]
[388809725,1759379447368,-151.0,0.00018819,2]
[388809726,1759379447377,-5702.95181166,0.00018819,2]
[388809727,1759379447387,-237.75405,0.0001883,2]
[388809728,1759379447396,-176.22616695,0.000189,2]
[388809729,1759379447406,-944.0,0.00018917,2]
[388809730,1759379447417,-1125.0,0.00018917,2]
[388809731,1759379447426,-500.0,0.00018918,2]
[388809732,1759379447436,-1665.71,0.00018918,2]
[388809733,1759379447446,-294.289192,0.00018918,2]
[388809734,1759379447455,-294.289192,0.00018918,2]
[388809735,1759379447465,-294.289192,0.00018918,2]
[388809736,1759379447474,-294.289192,0.00018918,2]
[388809737,1759379447483,-6002.45790837,0.00019,2]
[388809738,1759379447493,-1177.4590528,0.00019,2]
[388809739,1759379447502,-221.64294277,0.00019,2]
[388809740,1759379447512,-300.0,0.00019,2]
[388809741,1759379447522,-221613.69593332,0.00019,2]
[388809742,1759379447533,-151.0,0.00019,2]
[388809743,1759379447542,-151.0,0.00019,2]
[388809744,1759379447552,-160.762368,0.00019,2]
[388809745,1759379447561,-151.0,0.00019,2]
[388809746,1759379447571,-238.4147,0.00019,2]
[388809747,1759379447581,-170.933703,0.00019,2]
[388809748,1759379447591,-327.058025,0.00019,2]
[388809749,1759379447600,-327.058025,0.00019,2]
[388809750,1759379447610,-327.058025,0.00019,2]
[388809751,1759379447620,-21233.0,0.000191,2]
[388809752,1759379447629,-233.52,0.00019143,2]
[388809753,1759379447640,-151.0,0.00019178,2]
[388809754,1759379447650,-4000.0,0.00019178,2]
[388809755,1759379447662,-2679.19411473,0.00019178,2]
[388809756,1759379447672,-944.0,0.00019191,2]
[388809757,1759379447681,-1125.0,0.00019191,2]
[388809758,1759379447690,-500.0,0.00019192,2]
[388809759,1759379447700,-1665.71,0.00019192,2]
[388809760,1759379447712,-500.0,0.0001924,2]
[388809761,1759379447722,-500.47174938,0.0001924,2]
[388809762,1759379447733,-500.0,0.0001924,2]
[388809763,1759379447743,-160.30865826,0.0001924,2]
[388809764,1759379447752,-500.0,0.0001924,2]
[388809765,1759379447761,-500.0,0.0001924,2]
[388809766,1759379447770,-500.0,0.0001924,2]
[388809767,1759379447780,-500.0,0.0001924,2]
[388809768,1759379447789,-5702.95181166,0.00019262,2]
[388809769,1759379447799,-1875.84526682,0.000193,2]
[388809770,1759379447809,-560.94042722,0.000193,2]
[388809771,1759379447820,-500.20921784,0.000193,2]
[388809772,1759379447829,-385.0,0.000193,2]
[388809773,1759379447838,-486.0,0.000193,2]
[388809774,1759379447848,-243.0,0.000193,2]
[388809775,1759379447857,-500.0,0.00019375,2]
[388809776,1759379447867,-501.06831923,0.00019375,2]
[388809777,1759379447876,-166.04540904,0.00019375,2]
[388809778,1759379447885,-500.0,0.00019375,2]
[388809779,1759379447894,-501.1097191,0.00019375,2]
[388809780,1759379447903,-500.0,0.00019425,2]
[388809781,1759379447912,-500.19036518,0.00019425,2]
[388809782,1759379447922,-500.0,0.00019425,2]
[388809783,1759379447931,-203.56217008,0.00019425,2]
[388809784,1759379447940,-547.52979504,0.00019425,2]
[388809785,1759379447950,-500.0,0.00019425,2]
[388809786,1759379447959,-500.68633213,0.00019425,2]
[388809787,1759379447968,-570.78425962,0.00019425,2]
[388809788,1759379447977,-500.0,0.00019425,2]
[388809789,1759379447986,-500.0,0.00019425,2]
[388809790,1759379447995,-500.0,0.00019425,2]
[388809791,1759379448004,-500.46697532,0.00019425,2]
[388809792,1759379448013,-500.36858317,0.00019425,2]
[388809793,1759379448022,-500.0,0.00019425,2]
[388809794,1759379448032,-500.0,0.00019425,2]
[388809795,1759379448041,-250.31472589,0.00019425,2]
[388809796,1759379448051,-500.41924097,0.00019425,2]
[388809797,1759379448060,-500.0,0.00019425,2]
[388809798,1759379448068,-170.18784074,0.00019425,2]
[388809799,1759379448078,-500.0,0.00019425,2]
[388809800,1759379448087,-500.35706282,0.00019425,2]
[388809801,1759379448096,-500.0,0.00019425,2]
[388809802,1759379448105,-500.0,0.00019425,2]
[388809803,1759379448114,-500.29890464,0.00019425,2]
[388809804,1759379448123,-500.0,0.00019425,2]
[388809805,1759379448133,-500.86433607,0.00019425,2]
[388809806,1759379448142,-500.24733516,0.00019425,2]
[388809807,1759379448151,-500.0,0.00019425,2]
[388809808,1759379448160,-500.0,0.00019425,2]
[388809809,1759379448169,-164.49916195,0.00019425,2]
[388809810,1759379448178,-339.63550752,0.00019425,2]
[388809811,1759379448187,-500.0,0.00019425,2]
[388809812,1759379448196,-500.0,0.00019425,2]
[388809813,1759379448205,-572.05236078,0.00019425,2]
[388809814,1759379448214,-500.0,0.00019425,2]
[388809815,1759379448224,-500.0,0.00019425,2]
[388809816,1759379448233,-515.41849001,0.00019425,2]
[388809817,1759379448242,-500.0,0.00019425,2]
[388809818,1759379448251,-500.0,0.00019425,2]
[388809819,1759379448260,-500.0,0.00019425,2]
[388809820,1759379448269,-500.0,0.00019425,2]
[388809821,1759379448278,-534.94227074,0.00019425,2]
[388809822,1759379448287,-500.0,0.00019425,2]
[388809823,1759379448296,-500.0,0.00019425,2]
[388809824,1759379448305,-500.26420655,0.00019425,2]
[388809825,1759379448314,-500.0,0.00019425,2]
[388809826,1759379448323,-501.23652966,0.00019425,2]
[388809827,1759379448333,-278.2845073,0.00019425,2]
[388809828,1759379448342,-502.20862637,0.00019425,2]
[388809829,1759379448351,-166.2828778,0.00019425,2]
[388809830,1759379448360,-257.79456473,0.00019425,2]
[388809831,1759379448370,-944.0,0.00019465,2]
[388809832,1759379448379,-1125.0,0.00019465,2]
[388809833,1759379448388,-500.0,0.00019466,2]
[388809834,1759379448397,-1665.71,0.00019466,2]
[388809835,1759379448408,-446.54901912,0.00019526,12]
[388809836,1759379448417,-150.58425485,0.00019539,5]
[388809837,1759379448427,-152.99202364,0.00019633,2]
[388809838,1759379448436,-151.0,0.00019676,2]
[388809839,1759379448445,-5702.95181166,0.00019705,2]
[388809840,1759379448454,-151.0,0.00019726,2]
[388809841,1759379448464,-151.0,0.00019726,2]
[388809842,1759379448473,-151.0,0.00019726,2]
[388809843,1759379448483,-151.0,0.00019726,2]
[388809844,1759379448492,-151.0,0.00019726,2]
[388809845,1759379448502,-151.0,0.00019726,2]
[388809846,1759379448511,-151.0,0.00019726,2]
[388809847,1759379448521,-151.0,0.00019726,2]
[388809848,1759379448530,-151.0,0.00019726,2]
[388809849,1759379448539,-151.0,0.00019726,2]
[388809850,1759379448548,-151.0,0.00019726,2]
[388809851,1759379448557,-151.0,0.00019726,2]
[388809852,1759379448566,-247.43324,0.00019726,2]
[388809853,1759379448575,-156.166994,0.00019726,2]
[388809854,1759379448585,-151.0,0.00019726,2]
[388809855,1759379448594,-151.0,0.00019726,2]
[388809856,1759379448604,-151.0,0.00019726,2]
[388809857,1759379448613,-151.0,0.00019726,2]
[388809858,1759379448622,-151.0,0.00019726,2]
[388809859,1759379448632,-151.0,0.00019726,2]
[388809860,1759379448642,-151.0,0.00019726,2]
[388809861,1759379448653,-151.0,0.00019726,2]
[388809862,1759379448663,-151.0,0.00019726,2]
[388809863,1759379448672,-151.0,0.00019726,2]
[388809864,1759379448681,-152.888404,0.00019726,2]
[388809865,1759379448690,-151.0,0.00019726,2]
[388809866,1759379448701,-151.0,0.00019726,2]
[388809867,1759379448710,-151.0,0.00019726,2]
[388809868,1759379448719,-151.0,0.00019726,2]
[388809869,1759379448729,-151.0,0.00019726,2]
[388809870,1759379448738,-151.0,0.00019726,2]
[388809871,1759379448747,-151.0,0.00019726,2]
[388809872,1759379448756,-162.361679,0.00019726,2]
[388809873,1759379448765,-179.23044253,0.00019726,2]
[388809874,1759379448775,-151.0,0.00019726,2]
[388809875,1759379448784,-151.0,0.00019726,2]
[388809876,1759379448794,-232.17941,0.00019726,2]
[388809877,1759379448803,-151.0,0.00019726,2]
[388809878,1759379448812,-151.0,0.00019726,2]
[388809879,1759379448822,-151.0,0.00019726,2]
[388809880,1759379448831,-164.401767,0.00019726,2]
[388809881,1759379448841,-164.401767,0.00019726,2]
[388809882,1759379448850,-164.401767,0.00019726,2]
[388809883,1759379448859,-151.0,0.00019726,2]
[388809884,1759379448868,-151.0,0.00019726,2]
[388809885,1759379448878,-151.0,0.00019726,2]
[388809886,1759379448887,-151.0,0.00019726,2]
[388809887,1759379448897,-151.0,0.00019726,2]
[388809888,1759379448906,-155.874512,0.00019726,2]
[388809889,1759379448916,-294.289192,0.00019726,2]
[388809890,1759379448926,-294.289192,0.00019726,2]
[388809891,1759379448936,-294.289192,0.00019726,2]
[388809892,1759379448946,-294.289192,0.00019726,2]
[388809893,1759379448956,-100000.01,0.00019726,2]
[388809894,1759379448967,-181.47911768,0.00019726,2]
[388809895,1759379448977,-944.0,0.00019739,2]
[388809896,1759379448988,-1125.0,0.00019739,2]
[388809897,1759379448997,-644.25542379,0.0001974,2]
[388809898,1759379449006,-191.20931746,0.0001974,2]
[388809899,1759379449016,-1665.71,0.0001974,2]
[388809900,1759379449025,-151.0,0.0001974,2]
[388809901,1759379449034,-151.0,0.0001974,2]
[388809902,1759379449044,-500.39586813,0.00019788,2]
[388809903,1759379449053,-768.2721269,0.00019788,2]
[388809904,1759379449064,-172.72696291,0.00019788,2]
[388809905,1759379449073,-1000.0,0.00019788,2]
[388809906,1759379449082,-1000.0,0.00019788,2]
[388809907,1759379449092,-500.52711313,0.00019788,2]
[388809908,1759379449100,-298.84,0.00019789,2]
[388809909,1759379449183,-237.75404,0.0001983,2]
[388809910,1759379449194,-446.54901912,0.00019874,13]
[388809911,1759379449203,-587.0,0.00019887,2]
[388809912,1759379449213,-500.77061362,0.00019923,2]
[388809913,1759379449222,-1000.0,0.00019923,2]
[388809914,1759379449231,-160.92,0.00019937,2]
[388809915,1759379449240,-1002.71521042,0.0001995,15]
[388809916,1759379449249,-700.69996414,0.00019973,2]
[388809917,1759379449258,-1000.0,0.00019973,2]
[388809918,1759379449267,-501.12873497,0.00019973,2]
[388809919,1759379449276,-1001.03574928,0.00019973,2]
[388809920,1759379449285,-500.32895195,0.00019973,2]
[388809921,1759379449293,-1000.0,0.00019973,2]
[388809922,1759379449302,-500.0,0.00019973,2]
[388809923,1759379449311,-1000.87639544,0.00019973,2]
[388809924,1759379449320,-943.07603522,0.00019973,2]
[388809925,1759379449330,-1000.0,0.00019973,2]
[388809926,1759379449339,-164.67599499,0.00019973,2]
[388809927,1759379449348,-835.44792341,0.00019973,2]
[388809928,1759379449357,-1000.0,0.00019973,2]
[388809929,1759379449367,-1000.0,0.00019973,2]
[388809930,1759379449376,-1000.0,0.00019973,2]
[388809931,1759379449386,-1000.0,0.00019973,2]
[388809932,1759379449396,-500.46746148,0.00019973,2]
[388809933,1759379449405,-1000.0,0.00019973,2]
[388809934,1759379449414,-1000.0,0.00019973,2]
[388809935,1759379449424,-1000.0,0.00019973,2]
[388809936,1759379449433,-1000.0,0.00019973,2]
[388809937,1759379449443,-500.83497406,0.00019973,2]
[388809938,1759379449452,-1000.0,0.00019973,2]
[388809939,1759379449461,-1000.0,0.00019973,2]
[388809940,1759379449471,-1000.9929558,0.00019973,2]
[388809941,1759379449479,-1000.0,0.00019973,2]
[388809942,1759379449489,-318131.21115534,0.0002,2]
[388809943,1759379449498,-31023.63155338,0.0002,2]
[388809944,1759379449507,-6939.11251308,0.0002,2]
[388809945,1759379449516,-1512.05406265,0.0002,2]
[388809946,1759379449526,-1442.61340541,0.0002,5]
[388809947,1759379449535,-25242.35128718,0.0002,2]
[388809948,1759379449544,-6938.95120912,0.0002,5]
[388809949,1759379449554,-3000.0,0.0002,5]